[Event "TUR-ch U13-18 Open 2023"]
[Site "Antalya"]
[Date "2023.01.23"]
[Round "2"]
[White "Yildirim, Kemal"]
[Black "Gokcek, Kursat Bugra"]
[Result "1/2-1/2"]
[ECO "B27"]
[WhiteElo "1804"]
[BlackElo "2116"]
[Annotator "TA"]
[PlyCount "195"]
[EventDate "2023.01.17"]
[EventType "swiss"]
[EventCountry "TUR"]
[SourceTitle "playchess.com"]
[Source "ChessBase"]
[SourceQuality "1"]
[TimeControl "5400+30"]

{[%evp 10,194,22,19,20,11,16,13,18,31,30,-16,95,108,106,101,93,106,197,187,192,198,183,164,160,166,160,118,132,131,362,369,354,325,310,113,105,85,88,84,82,81,84,71,91,87,105,96,97,74,80,73,77,69,251,243,222,174,309,309,309,309,309,309,309,309,298,229,221,214,863,634,863,863,849,849,841,836,4367,4367,3794,836,4512,1738,29962,2684,1454,836,29962,828,29955,0,29961,792,1432,10404,11260,1391,1050,956,1143,207,887,4702,12668,368,29944,29942,728,29945,29947,29956,29969,29970,29970,29952,29944,29953,29944,29953,29945,29955,29952,29955,29954,29955,29956,29957,29954,29958,29957,29956,29956,29958,29959,29960,29961,29962,29965,29959,29961,29960,29959,29954,29956,29956,29955,0,29946,0,29963,29958,29960,29952,12650,29950,29951,29956,12541,0,0,0,0,0,0,0,0,0,0,0,0,0,0,0,0,0,0,0,0,0,0,0,0,0,0,0,0]} 1. e4 {[%emt 0:01:00][%cal Be2e4,Be4e5][%mdl 32]} c5 {[%emt 0:01:00]} 2. Nf3 {[%emt 0:00:30]} g6 {[%emt 0:00:30]} 3. c3 {[%emt 0:00:30]} Bg7 {[%emt 0:07:30]} 4. d4 {[%emt 0:00:30]} cxd4 {[%emt 0:00:30]} 5. cxd4 {[%emt 0:00:30]} d5 {[%emt 0:00:30]} 6. e5 {[%emt 0:06:30]} a6 {[%emt 0:01:30] Black is weak on the dark squares. B27: Sicilian: 2 Nf3, unusual Black 2nd moves.} 7. h3 {[%emt 0:00:30]} Nc6 {[%emt 0:00:30]} 8. Nc3 {[%emt 0:03:30]} f6 {[%emt 0:02:30]} 9. Bf4 {[%emt 0:05:30]} fxe5 {[%emt 0:05:30]} 10. Nxe5 {[%emt 0:07:30] [#]} (10. dxe5 {is more appropriate.} e6 11. Qd2) 10... Qb6 $146 {[%emt 0:12:30]} (10... Nh6 $11) ({Predecessor:} 10... Nf6 11. Nxc6 bxc6 12. Be5 O-O 13. Be2 Nd7 14. Bxg7 Kxg7 15. O-O e5 16. dxe5 Nxe5 {0-1 Piesik,P (2420)-Galchenko,M (2442) Titled Tuesday intern op 06th Dec Early blitz 2022 (10)}) 11. Nxd5 $16 {[%emt 0:10:30]} Qa5+ {[%emt 0:00:30]} 12. Nc3 {[%emt 0:00:30] White has more active pieces.} Nxe5 {[%emt 0:02:30]} 13. dxe5 {[%emt 0:00:00] Black must now prevent Qb3.} Bxe5 {[%emt 0:00:30] [#]} (13... Be6 $16) 14. Bb5+ $1 $18 {[%emt 0:01:00][%mdl 512]} axb5 {[%emt 0:02:30]} 15. Bxe5 {[%emt 0:00:30]} Nf6 {[%emt 0:00:30]} 16. Bxf6 {[%emt 0:10:30]} exf6 {[%emt 0:00:30]} 17. O-O {[%emt 0:00:30][%cal Bh1f1,Bf1e1,Be1e7][%mdl 32]} O-O {[%emt 0:08:30]} 18. Qd5+ {[%emt 0:13:30]} Kg7 {[%emt 0:15:30]} 19. Rfe1 {[%emt 0:05:30]} b4 $2 {[%emt 0:02:30]} (19... Rf7 $16 {was worth a try.}) 20. Re7+ {[%emt 0:04:30]} Kh8 {[%emt 0:05:30]} 21. Nb5 {[%emt 0:05:30] Hoping for Rc1.} Qd8 {[%emt 0:06:30] [#]} 22. Qxd8 {[%emt 0:04:23]} (22. Qc5 $1 $18 {is the precise move to win.}) 22... Rxd8 $16 {[%emt 0:00:30]} 23. Rc1 {[%emt 0:00:10]} Bf5 {[%emt 0:01:30]} (23... Rxa2 $2 24. Nd6 $18) 24. Rcc7 {[%emt 0:01:27] Prevents Rd7. g4 is the strong threat.} g5 {[%emt 0:00:30]} 25. Rxb7 {[%emt 0:01:40]} Rdb8 {[%emt 0:10:00]} 26. Nd6 {[%emt 0:02:59]} Rxb7 {[%emt 0:01:03]} 27. Rxb7 {[%emt 0:00:06][%mdl 4096] Endgame KRB-KRN} Bg6 {[%emt 0:02:41]} 28. Rxb4 {[%emt 0:00:52]} Rxa2 {[%emt 0:00:13]} 29. Rb7 {[%emt 0:00:17]} Ra1+ {[%emt 0:05:04]} 30. Kh2 {[%emt 0:00:05]} Kg8 {[%emt 0:00:35]} 31. b4 {[%emt 0:02:16]} h5 $2 {[%emt 0:02:05]} (31... Ra6 $14) 32. b5 $18 {[%emt 0:03:13]} Rd1 {[%emt 0:00:58]} 33. Nc4 {[%emt 0:03:48] Threatens to win with b6.} Kf8 {[%emt 0:00:13]} (33... Bf7 {was called for.}) 34. b6 {[%emt 0:01:32] And now Rc7 would win.} Rb1 {[%emt 0:02:43]} 35. Rc7 {[%emt 0:00:52] Strongly threatening b7.} Bd3 {[%emt 0:00:29]} 36. b7 {[%emt 0:03:52]} Bxc4 {[%emt 0:00:30] KRB-KR} 37. Rc8+ {[%emt 0:00:30]} (37. Rxc4 Rxb7 38. h4 Kg7 $11) 37... Kg7 {[%emt 0:00:00][%cal Ob1b7]} 38. b8=Q {[%emt 0:00:00]} (38. b8=B Be6 39. Rd8 Kg6 $15) 38... Rxb8 {[%emt 0:00:14]} 39. Rxb8 {[%emt 0:00:00] KR-KB} Kg6 $2 {[%emt 0:00:25]} (39... h4 40. g3 hxg3+ 41. Kxg3 Be2) 40. Rb4 {[%emt 0:00:33]} Bd3 {[%emt 0:01:31]} 41. Rd4 {[%emt 0:00:30]} Be2 {[%emt 0:00:30]} 42. h4 {[%emt 0:00:30]} Kf5 {[%emt 0:00:30]} 43. Kg3 {[%emt 0:00:30]} Ke5 {[%emt 0:00:30] Repels Rd5+} 44. Rd8 {[%emt 0:00:30]} Kf5 {[%emt 0:00:30]} 45. Ra8 {[%emt 0:01:34]} (45. hxg5 $142 Kxg5 46. Rg8+ Kh6 47. Kf4) 45... Bf1 {[%emt 0:00:11]} 46. Ra1 {[%emt 0:01:52]} (46. Ra5+ $142 Kg6 47. hxg5) 46... Be2 {[%emt 0:00:30]} 47. Ra2 {[%emt 0:00:08]} (47. Ra5+ $142 Kg6 48. hxg5 fxg5 49. f4 gxf4+ 50. Kxf4 Bf1 51. Ra1 Bd3 52. Rd1) 47... Bf1 {[%emt 0:00:30]} 48. Ra4 {[%emt 0:00:00]} Be2 {[%emt 0:00:08]} 49. Rb4 {[%emt 0:00:23]} (49. Ra5+ $142 Kg6 50. hxg5 fxg5 51. f4 gxf4+ 52. Kxf4 Bc4 53. Rc5 Bf1 54. Rc1) 49... Ke5 {[%emt 0:00:56]} 50. Ra4 {[%emt 0:01:46]} Kf5 $1 {[%emt 0:00:21]} 51. Ra1 {[%emt 0:00:03]} (51. Ra5+ $142 Kg6 52. hxg5 fxg5 53. f4 gxf4+ 54. Kxf4 Kh6 55. Ra1 Kg6 56. Re1) 51... Bd3 {[%emt 0:01:31]} 52. Ra5+ {[%emt 0:00:34]} Kg6 {[%emt 0:00:01]} 53. Rd5 {[%emt 0:00:20]} (53. hxg5 $142 fxg5 54. f4 h4+ 55. Kf3) 53... Be4 {[%emt 0:00:40]} 54. Rd4 {[%emt 0:00:30]} Kf5 {[%emt 0:00:40]} 55. Ra4 $2 {[%emt 0:00:43]} (55. f3 Bc6 56. Kf2) 55... Bb7 {[%emt 0:00:49]} (55... g4 56. Ra5+ Kg6) 56. Ra5+ {[%emt 0:00:07]} (56. hxg5 $142 fxg5 57. Ra5+ Kf6 58. f3) 56... Kg6 {[%emt 0:00:30]} 57. Rb5 $2 {[%emt 0:00:31]} (57. hxg5 fxg5 58. Rc5) 57... Be4 $2 {[%emt 0:00:00]} (57... Bc8 $18 58. Rb6 Kf5) 58. hxg5 {[%emt 0:00:48]} fxg5 {[%emt 0:00:00]} 59. f4 {[%emt 0:00:04]} h4+ {[%emt 0:01:05]} 60. Kg4 {[%emt 0:00:27]} gxf4 {[%emt 0:00:48]} 61. Kxf4 {[%emt 0:01:13]} ({Weaker is} 61. Kxh4 f3 62. Rb6+ Kf7 63. gxf3 Bxf3 $11) 61... Bd3 {[%emt 0:00:15]} 62. Rb3 {[%emt 0:00:20]} Bf1 {[%emt 0:00:25]} 63. Rb2 {[%emt 0:00:52]} h3 {[%emt 0:00:18] [#]} 64. g4 $1 {[%emt 0:00:20]} Bg2 {[%emt 0:00:23]} 65. Rb6+ {[%emt 0:00:14]} Kg7 {[%emt 0:00:02]} 66. Kg3 {[%emt 0:00:08]} Bf1 {[%emt 0:00:38]} 67. Rc6 {[%emt 0:00:56]} Bg2 {[%emt 0:00:45]} 68. Rd6 {[%emt 0:00:04]} Kh7 {[%emt 0:00:16]} 69. Re6 {[%emt 0:00:54]} Kg7 {[%emt 0:00:05]} 70. Ra6 {[%emt 0:00:21]} Kh7 {[%emt 0:00:55]} 71. g5 {[%emt 0:00:22]} Kg7 {[%emt 0:00:46]} 72. Rh6 {[%emt 0:00:30]} Bf1 {[%emt 0:00:00]} 73. Kf4 {[%emt 0:00:00]} Kf7 {[%emt 0:00:47]} 74. Ke4 {[%emt 0:00:55]} Kg7 {[%emt 0:00:53]} 75. Kf5 {[%emt 0:00:26]} Bd3+ {[%emt 0:01:07]} 76. Kg4 {[%emt 0:00:56]} Bf1 {[%emt 0:00:05]} 77. Rb6 {[%emt 0:00:33]} Bg2 {[%emt 0:00:36]} 78. Rh6 {[%emt 0:00:15]} Bf1 $1 {[%emt 0:00:00]} 79. Kf4 {[%emt 0:00:42]} Kf7 {[%emt 0:01:15]} 80. Rf6+ {[%emt 0:00:54]} Kg7 {[%emt 0:00:04]} 81. Kg3 {[%emt 0:00:33]} Bg2 {[%emt 0:00:30]} 82. Rd6 {[%emt 0:00:00]} (82. Re6 $18 Kf7 83. Rd6) 82... Kf7 {[%emt 0:00:05]} 83. Rh6 {[%emt 0:00:40]} Kg7 {[%emt 0:00:30]} 84. Rxh3 $2 {[%emt 0:00:00]} ({White must play} 84. Kf2 $18 Kf7 85. Ke3) 84... Bxh3 $11 {[%emt 0:00:11] The position is equal.} 85. Kxh3 $18 {[%emt 0:00:28] KP-K} Kg6 {[%emt 0:00:30]} 86. Kh4 {[%emt 0:00:00]} Kg7 {[%emt 0:00:00]} 87. Kh5 {[%emt 0:00:07]} Kh7 {[%emt 0:00:27]} 88. Kg4 {[%emt 0:00:30]} Kg6 {[%emt 0:00:30]} 89. Kf4 {[%emt 0:00:30]} Kg7 {[%emt 0:00:30]} 90. Kf5 {[%emt 0:00:30]} Kf7 {[%emt 0:00:00]} 91. g6+ {[%emt 0:00:00]} Kg7 {[%emt 0:00:00]} 92. Kg5 {[%emt 0:00:00]} Kg8 {[%emt 0:00:00]} 93. Kf6 {[%emt 0:00:00] White wants to mate with g7.} (93. Kh6 $5 Kh8 $8 94. Kh5 $11) 93... Kf8 {[%emt 0:00:00]} 94. Kf5 {[%emt 0:00:19]} Kg7 {[%emt 0:00:18]} 95. Kg5 {[%emt 0:00:00]} Kg8 {[%emt 0:00:00]} 96. Kh6 {[%emt 0:00:00]} Kh8 {[%emt 0:00:00]} 97. g7+ {[%emt 0:00:00]} Kg8 {[%emt 0:00:00]} 98. Kg6 $1 {[%emt 0:00:00] Black defended with fortune.   Weighted Error Value: White=0.75/Black=0.89} 1/2-1/2

[Event "TUR-ch U13-18 Open 2023"]
[Site "Antalya"]
[Date "2023.01.23"]
[Round "2"]
[White "Avsar, Gediz"]
[Black "Yeltekin, Atalay Uras"]
[Result "1-0"]
[ECO "B52"]
[WhiteElo "1748"]
[BlackElo "1361"]
[Annotator "NA RC COMBH"]
[PlyCount "41"]
[EventDate "2023.01.17"]
[EventType "swiss"]
[EventCountry "TUR"]
[SourceTitle "playchess.com"]
[Source "ChessBase"]
[SourceQuality "1"]
[TimeControl "5400+30"]

1. e4 {[%emt 0:01:00]} c5 {[%emt 0:01:00]} 2. Nf3 {[%emt 0:00:30]} d6 {[%emt 0:00:30]} 3. Bb5+ {[%emt 0:00:30]} Bd7 {[%emt 0:00:00]} 4. Bxd7+ {[%emt 0:00:00]} Nxd7 {[%emt 0:00:00]} 5. O-O {[%emt 0:00:00]} g6 {[%emt 0:01:30]} 6. c3 {[%emt 0:00:30]} Bg7 {[%emt 0:00:30]} 7. d4 {[%emt 0:00:30]} cxd4 {[%emt 0:04:30]} 8. cxd4 {[%emt 0:00:30]} e5 {[%emt 0:04:30]} 9. Nc3 {[%emt 0:03:30]} a6 {[%emt 0:06:30]} 10. Bg5 {[%emt 0:04:30]} f6 {[%emt 0:00:30]} 11. Be3 {[%emt 0:00:00]} Ne7 {[%emt 0:06:30]} 12. Qb3 {[%emt 0:00:00]} b5 {[%emt 0:01:30]} 13. Rfd1 {[%emt 0:01:30]} Nf8 {[%emt 0:04:30]} 14. dxe5 {[%emt 0:01:30]} fxe5 {[%emt 0:00:30]} 15. Ng5 {[%emt 0:01:30]} Kd7 {[%emt 0:00:30]} 16. Nf7 {[%emt 0:00:30]} Qb8 {[%emt 0:00:30]} 17. Rxd6+ {[%emt 0:00:30]} Kc7 {[%emt 0:01:30]} 18. Nd5+ {[%emt 0:00:30]} Nxd5 {[%emt 0:00:30]} 19. Rc1+ {[%emt 0:00:30]} Nc3 {[%emt 0:01:30]} 20. Rxc3+ {[%emt 0:00:30]} Kb7 {[%emt 0:00:30]} 21. Qd5# {[%emt 0:00:00]} 1-0

[Event "TUR-ch U13-18 Open 2023"]
[Site "Antalya"]
[Date "2023.01.23"]
[Round "2"]
[White "Koseoglu, Omer Umut"]
[Black "Engin, Onur Cinar"]
[Result "1/2-1/2"]
[ECO "E24"]
[WhiteElo "1601"]
[BlackElo "1990"]
[Annotator "TA"]
[PlyCount "70"]
[EventDate "2023.01.17"]
[EventType "swiss"]
[EventCountry "TUR"]
[SourceTitle "playchess.com"]
[Source "ChessBase"]
[SourceQuality "1"]
[TimeControl "5400+30"]

{[%evp 14,70,8,10,14,9,12,-9,-12,-32,-26,-61,-32,-38,-33,-48,-12,-12,-12,-12,0,-12,0,-12,-12,-25,-22,-32,-31,-126,-127,-135,-140,-140,-141,-156,-151,-168,-158,-153,-167,-182,-176,-167,-116,-125,-90,-90,-90,-262,-43,-6,0,0,0,0,0,0,0]} 1. d4 {[%emt 0:01:00]} e6 {[%emt 0:01:00]} 2. c4 {[%emt 0:00:00]} Nf6 {[%emt 0:00:30]} 3. Nc3 {[%emt 0:00:00]} Bb4 {[%emt 0:01:30]} 4. Qc2 {[%emt 0:00:30]} c5 {[%emt 0:01:30]} 5. a3 {[%emt 0:00:30]} Bxc3+ {[%emt 0:00:30]} 6. bxc3 {[%emt 0:02:30]} Nc6 {[%emt 0:01:30]} 7. Nf3 {[%emt 0:01:30]} d6 {[%emt 0:01:30]} 8. e4 {[%emt 0:10:30]} e5 {[%emt 0:05:30] E24: Nimzo-Indian: Sämisch: Unusual Black 5th moves and 5...c5 sidelines.} 9. d5 {[%emt 0:14:30]} Na5 {[%emt 0:01:30]} 10. Bg5 {[%emt 0:00:30]} b6 {[%emt 0:05:30]} 11. Bd3 {[%emt 0:05:30]} h6 {[%emt 0:03:30]} 12. Bh4 {[%emt 0:00:30] [#]} Rg8 $146 {[%emt 0:12:30]} (12... g5 $5 {[%cal Rg5h4]} 13. Bg3 Nh5 $11) ({Predecessor:} 12... Bg4 13. Nd2 g5 14. Bg3 Bd7 15. a4 Nh5 16. Nb3 Nf4 17. Bxf4 gxf4 18. Nxa5 bxa5 {1-0 Airapetian,N-Panko,A (2126) RUS-ch Seniors 2009 (7)}) 13. Bxf6 {[%emt 0:03:30]} Qxf6 {[%emt 0:00:00]} 14. Nd2 {[%emt 0:02:30]} g5 {[%emt 0:09:00]} 15. Nf1 {[%emt 0:04:30]} Kd8 {[%emt 0:06:30]} 16. Ne3 {[%emt 0:01:30]} Kc7 {[%emt 0:00:30]} 17. Qe2 {[%emt 0:07:30]} Bd7 {[%emt 0:09:30]} 18. Rb1 {[%emt 0:02:30] [#]} h5 $1 {[%emt 0:02:30]} 19. Kd2 {[%emt 0:03:30]} (19. Qxh5 $2 {too greedy.} g4 20. h3 Rg5 21. hxg4 Rxh5 22. Rxh5 Qf4 $19) (19. f3 g4) 19... g4 {[%emt 0:06:30]} 20. g3 {[%emt 0:01:30]} Qg5 {[%emt 0:03:30]} 21. f4 {[%emt 0:09:30]} exf4 $17 {[%emt 0:04:30]} 22. gxf4 {[%emt 0:00:30]} Qxf4 {[%emt 0:00:30][%cal Of7f5]} 23. Rhf1 {[%emt 0:01:30]} Qe5 {[%emt 0:01:30]} 24. Rxf7 {[%emt 0:00:30]} Raf8 {[%emt 0:01:55]} 25. Rbf1 {[%emt 0:00:30]} Rxf7 {[%emt 0:01:06]} 26. Rxf7 {[%emt 0:00:30] [#]} Rg7 $1 {[%emt 0:01:05]} 27. Rxg7 {[%emt 0:05:30]} Qxg7 {[%emt 0:00:05]} 28. Qf2 {[%emt 0:00:00] [#]} Qe5 {[%emt 0:03:16] Prevents Qf4.} (28... Qg5 $1 $19 29. Kc2 h4) 29. Qg3 {[%emt 0:02:20]} Qg5 {[%emt 0:00:05]} 30. h4 {[%emt 0:03:01]} Qf6 {[%emt 0:01:36] And now ...Nb3+ would win.} 31. Nf5 $2 {[%emt 0:00:20]} (31. Ng2 $17 {is a better defense.}) 31... Nb7 $2 {[%emt 0:02:46]} (31... Nb3+ $19 32. Kc2 Ba4) 32. Qf4 $1 $15 {[%emt 0:05:28]} Bxf5 {[%emt 0:02:09] The position is equal.} 33. exf5 {[%emt 0:00:42] Hoping for Qg5.} Nd8 {[%emt 0:04:48] ...Nf7 is the strong threat.} (33... Qxh4 $2 34. f6 Nd8 35. f7 Nxf7 36. Qxf7+ Kd8 37. Bf5 Qg5+ 38. Kd3 $18) 34. Qg5 $1 {[%emt 0:00:51]} Qe5 {[%emt 0:02:01]} 35. f6 {[%emt 0:01:01] aiming for Qxe5.} Qh2+ $1 {[%emt 0:00:06] Weighted Error Value: White=0.15 (very precise) /Black=0.19 (very precise)} 1/2-1/2

[Event "TUR-ch U13-18 Open 2023"]
[Site "Antalya"]
[Date "2023.01.23"]
[Round "2"]
[White "Gebes, Ata"]
[Black "Deveci, Huseyin Said"]
[Result "0-1"]
[ECO "B26"]
[WhiteElo "1562"]
[BlackElo "1987"]
[Annotator "TA"]
[PlyCount "138"]
[EventDate "2023.01.17"]
[EventType "swiss"]
[EventCountry "TUR"]
[SourceTitle "playchess.com"]
[Source "ChessBase"]
[SourceQuality "1"]
[TimeControl "5400+30"]

{[%evp 24,138,-7,-22,0,-7,0,0,0,0,0,-32,-41,-49,-49,-59,-40,-58,-41,-58,-52,-66,-29,-78,-73,-85,-88,-100,-83,-69,-52,-71,-51,-89,-79,-127,-127,-139,-125,-124,-127,-185,-183,-184,-187,-234,-210,-214,-207,-225,-216,-232,-215,-217,-225,-218,-218,-212,-209,-216,-145,-162,-136,-192,-162,-171,-178,-331,-331,-350,-350,-336,-297,-518,-507,-533,-510,-434,-272,-214,-220,-771,-767,-732,-690,-1270,-1219,-1044,-1058,-801,-650,-6967,-5273,-6307,-6111,-5035,-4108,-6279,-5543,-29960,-1856,-947,-896,-29974,-1877,-29975,-29972,-29976,-29977,-29978,-29979,-29979,-29977,-29977,-29977,-29980,-29980]} 1. e4 {[%emt 0:04:00]} c5 {[%emt 0:01:00]} 2. Nc3 {[%emt 0:01:30]} e6 {[%emt 0:01:30]} 3. g3 {[%emt 0:01:30]} Nc6 {[%emt 0:00:30]} 4. Bg2 {[%emt 0:00:00]} g6 {[%emt 0:01:30]} 5. Nge2 {[%emt 0:01:00]} Bg7 {[%emt 0:00:30]} 6. d3 {[%emt 0:00:30]} Nge7 {[%emt 0:00:30]} 7. Be3 {[%emt 0:00:00]} Nd4 {[%emt 0:00:30]} 8. O-O {[%emt 0:03:00]} O-O {[%emt 0:02:30]} 9. Qd2 {[%emt 0:00:30]} d6 {[%emt 0:07:30]} 10. Nd1 {[%emt 0:08:30]} Rb8 {[%emt 0:01:30]} 11. c3 {[%emt 0:01:30]} Nxe2+ {[%emt 0:00:30]} 12. Qxe2 {[%emt 0:00:00]} b5 {[%emt 0:05:30]} 13. f4 {[%emt 0:09:00]} Qc7 {[%emt 0:07:30] B26: Closed Sicilian: 3 g3, lines with early Be3.} 14. Rc1 {[%emt 0:07:30]} Ba6 {[%emt 0:05:30]} 15. b4 {[%emt 0:06:30] [#]} cxb4 $146 {[%emt 0:21:30] The position is equal.} ({Predecessor:} 15... Rbc8 16. Bd2 Bb7 17. Nf2 a5 18. Be3 f5 19. e5 Bxg2 20. Kxg2 Qb7+ 21. Kg1 Nd5 22. exd6 Nxc3 23. Rxc3 Bxc3 24. bxc5 Qd5 25. d4 b4 26. Nh3 Bxd4 {0-1 Hansen,A (1986)-Modestov,B (2300) Serpukhov-B 2004 (9)}) 16. cxb4 {[%emt 0:00:30]} Qd7 {[%emt 0:00:00]} 17. d4 {[%emt 0:09:30]} Rfc8 {[%emt 0:01:00]} 18. Nb2 {[%emt 0:04:30]} Bb7 {[%emt 0:07:30]} 19. Bf2 {[%emt 0:19:30]} h5 {[%emt 0:05:30]} 20. h3 {[%emt 0:09:30]} Bh6 {[%emt 0:03:30]} 21. Qd3 {[%emt 0:03:36]} a6 {[%emt 0:02:30]} 22. a3 {[%emt 0:01:55]} Qd8 {[%emt 0:00:30]} 23. d5 {[%emt 0:01:36]} (23. Qe3 $11) 23... exd5 $17 {[%emt 0:04:32]} 24. exd5 {[%emt 0:00:30]} Bg7 {[%emt 0:00:00]} 25. Rxc8 {[%emt 0:02:14]} Rxc8 {[%emt 0:00:15]} 26. Nd1 {[%emt 0:01:32]} Qd7 {[%emt 0:03:50]} 27. Re1 {[%emt 0:01:32]} Rc4 {[%emt 0:09:50]} 28. Kh2 {[%emt 0:01:22]} h4 {[%emt 0:00:30]} 29. Re4 {[%emt 0:01:08]} ({White should play} 29. Ne3 Rc3 30. Qe2) 29... hxg3+ {[%emt 0:01:21]} (29... Bxd5 30. Rxe7 Qxe7 31. Bxd5 (31. Qxd5 hxg3+ 32. Bxg3 Bd4 $11) 31... hxg3+ 32. Kxg3 $14 (32. Qxg3 Rxf4 33. Kg1 Rf5 $15)) 30. Bxg3 {[%emt 0:00:13]} Rc8 {[%emt 0:01:20] Black is more active.} ({Much worse is} 30... Bxd5 $6 31. Rxe7 Qxe7 32. Qxd5 $11 (32. Bxd5 Rd4 $11)) 31. Re1 {[%emt 0:01:02]} Nf5 {[%emt 0:00:45]} 32. Be4 {[%emt 0:00:17]} (32. Bf2 $17 {might work better.}) 32... Nxg3 $19 {[%emt 0:01:44]} 33. Qxg3 {[%emt 0:00:38]} Qd8 {[%emt 0:00:20] Dodges Qh4} 34. Qf3 {[%emt 0:00:44]} (34. Kg2 $142) 34... Qh4 {[%emt 0:00:52]} 35. Qg3 {[%emt 0:00:38]} Qf6 {[%emt 0:01:08]} 36. Nf2 {[%emt 0:00:31]} Rc3 {[%emt 0:00:08]} 37. Re3 {[%emt 0:00:04] [#]} Rxe3 $1 {[%emt 0:02:23]} 38. Qxe3 {[%emt 0:00:30] [#]} Qb2 $1 {[%emt 0:00:00] Strongly threatening ...Bd4.} 39. Kg3 {[%emt 0:00:46]} Bd4 {[%emt 0:00:29] A strong pair of Bishops.} 40. Nd1 {[%emt 0:00:30]} Qa1 {[%emt 0:00:30] White is weak on the dark squares} 41. Qd3 {[%emt 0:00:30]} Kg7 {[%emt 0:00:30]} 42. Bf3 {[%emt 0:00:30]} Bf6 {[%emt 0:00:30]} 43. Qe3 {[%emt 0:00:30]} (43. h4 $17) 43... Qa2 {[%emt 0:00:30]} 44. Nf2 {[%emt 0:00:38]} Bxd5 {[%emt 0:01:00]} 45. Bxd5 $2 {[%emt 0:00:52]} (45. Ne4 {was called for.}) 45... Qxd5 {[%emt 0:00:30]} 46. Qd3 {[%emt 0:00:00]} Qxd3+ {[%emt 0:01:11]} 47. Nxd3 {[%emt 0:00:04][%mdl 4096] Endgame KB-KN} Bd4 {[%emt 0:00:00] aiming for ...f5.} 48. Kf3 $2 {[%emt 0:00:12]} (48. f5) 48... f5 {[%emt 0:00:03]} 49. Ne1 {[%emt 0:00:29]} Kf6 {[%emt 0:00:05]} 50. Ke2 {[%emt 0:00:32]} Ke6 {[%emt 0:00:18]} 51. Kd3 {[%emt 0:00:56]} Kd5 {[%emt 0:00:07] ...Bb2 would be deadly.} 52. Nf3 $2 {[%emt 0:00:30]} (52. Ng2) 52... Bb2 {[%emt 0:00:30]} 53. Nh4 {[%emt 0:00:00]} Bxa3 {[%emt 0:00:26]} 54. Nxg6 {[%emt 0:00:00]} Bxb4 {[%emt 0:00:00]} 55. Ne7+ {[%emt 0:00:24]} Ke6 {[%emt 0:00:24]} 56. Nc6 {[%emt 0:00:00]} Bc5 {[%emt 0:00:48]} 57. h4 {[%emt 0:00:24]} Kf6 {[%emt 0:00:10]} 58. h5 {[%emt 0:00:11]} Kg7 {[%emt 0:01:03] ...Kh6 is the strong threat.} 59. Ne7 {[%emt 0:00:30]} Kh6 {[%emt 0:00:00]} 60. Nxf5+ {[%emt 0:00:26]} Kxh5 {[%emt 0:00:00] ( -> ...a5)} 61. Ke4 {[%emt 0:01:33]} Kg6 {[%emt 0:00:37]} (61... a5 $142 62. Ng3+ Kg4 63. Nf1 a4 64. f5 Kg5 65. Nd2 Kf6 66. Nf1 b4 67. Kd5 b3 68. Kc4 d5+ 69. Kd3 Kxf5 70. Nd2 Kf4 71. Nf1 Bb4 72. Ne3 Ke5 73. Ng4+ Kf5 74. Nh2 Kf4 75. Nf1 a3 76. Ne3 Ke5 77. Ng4+ Ke6 78. Ke3 b2 79. Nh2 b1=Q 80. Kf3 a2 81. Kg2 Qg6+ 82. Kh3 a1=Q 83. Nf3 Qf1+ 84. Kh4 Qh1+ 85. Nh2 Qxh2#) 62. Ne7+ {[%emt 0:00:11]} Kf7 {[%emt 0:00:27]} 63. Nd5 {[%emt 0:00:07]} a5 {[%emt 0:02:19]} (63... b4 $142 64. f5 a5 65. Kd3 a4 66. Kc2 b3+ 67. Kb2 Bf2 68. Ka3 Bd4 69. Nc7 Bc5+ 70. Kb2 Kf6 71. Nb5 Kxf5 72. Kc3 Ke4 73. Nc7 Bd4+ 74. Kc4 b2 75. Nb5 Bc5 76. Nc3+ Ke5 77. Nb1 a3 78. Kc3 Bb4+ {[%mdl 64] Promotion} 79. Kxb4 a2 80. Nd2 b1=Q+ 81. Nxb1 axb1=Q+ 82. Kc3 Ke4 83. Kc4 Qd3+ 84. Kb4 Kd5 85. Ka5 Kc5 86. Ka4 Qg3 87. Ka5 Qa3#) 64. f5 {[%emt 0:00:13]} a4 {[%emt 0:00:55] Black mates.} 65. Kd3 {[%emt 0:00:29]} b4 {[%emt 0:01:03][%cal Bb5b4,Bb4b3][%mdl 32]} 66. Kc4 {[%emt 0:01:47]} b3 {[%emt 0:00:32]} 67. Kc3 {[%emt 0:00:03]} Kg7 {[%emt 0:00:34]} ({Not} 67... Ba3 68. Nb6 $11) 68. Kb2 {[%emt 0:00:18]} Kh6 {[%emt 0:00:00]} 69. Ne7 {[%emt 0:00:55]} Kg5 {[%emt 0:00:40] Weighted Error Value: White=0.75/Black=0.18 (very precise)} 0-1